Cogmind - Beta 16 @@@ ROGUE MODE // 2025.12.26 @ 13:26:11 Player: Arttano Result: Destroyed by YI-UF0 with YI-UF0's Doublenader Performance ------------- Evolutions (0) 0 Regions Visited (2) 400 Robots Destroyed (9) 45 Value Destroyed (121) 121 Prototype IDs (0) 0 Alien Tech Used (0) 0 Bonus (0) 0 TOTAL SCORE: 566 Bonus ------- None Cogmind --------- Core Integrity 0/250 Matter 254/300 Energy 100/100 System Corruption 1% Temperature Cool (0) Movement Core (350) Ox6 Location -10/Mines Parts ------- > --- POWER (1) -------- (None) > --- PROPULSION (2) --- (None) > --- UTILITY (2) ------ Large Storage Unit > --- WEAPON (2) ------- (None) > --- INVENTORY (15) --- Light Ion Engine Light Ion Engine Light Treads Wheel Sensor Array Sensor Array Signal Interpreter Signal Interpreter ECM Suite ECM Suite EMP Trap EMP Trap EMP Trap Peak State ------------ > --- POWER ------------ Ion Engine > --- PROPULSION ------- Light Treads Compact Wheel > --- UTILITY ---------- Large Storage Unit Seismic Detector > --- WEAPON ----------- Shotgun Shotgun > --- INVENTORY -------- Light Ion Engine Light Ion Engine Light Treads Wheel Sensor Array Signal Interpreter Signal Interpreter ECM Suite Shotgun [Rating: 10] Favorites ----------- Power Ion Engine Engine Ion Engine Propulsion Light Treads Treads Light Treads Wheel Compact Wheel Utility Seismic Detector Device Seismic Detector Storage Small Storage Unit Weapon Shotgun Energy Gun EM Pulse Gun Ballistic Gun Shotgun Launcher Grenade Launcher Build | -11 -10 -10 ------- Run | Yrd Mat Min Slots Evolved . | . . . Power . | . . . Propulsion . | . . . Utility . | . . . Weapon . | . . . Parts Attached 12 | 7 3 2 Power 1 | 1 . . Engine 1 | 1 . . Core . | . . . Reactor . | . . . Propulsion 2 | 2 . . Treads 1 | 1 . . Leg . | . . . Wheel 1 | 1 . . Hover . | . . . Flight . | . . . Utility 3 | 2 1 . Device 1 | 1 . . Storage 2 | 1 1 . Processor . | . . . Hackware . | . . . Protection . | . . . Artifact . | . . . Weapon 6 | 2 2 2 Energy Gun 1 | 1 . . Energy Cannon . | . . . Ballistic Gun 4 | 1 2 1 Ballistic Cannon . | . . . Launcher 1 | . . 1 Special Weapon . | . . . Impact Weapon . | . . . Slashing Weapon . | . . . Piercing Weapon . | . . . Special Melee Weapon . | . . . Unidentified Prototypes . | . . . Parts Lost 8 | . . 8 Power 1 | . . 1 Propulsion 2 | . . 2 Utility 1 | . . 1 Weapon 4 | . . 4 Highest Loss Streak 8 | . . 8 To Critical Strikes . | . . . Average Backups 8 | 4 8 10 Power 1 | 1 2 2 Propulsion 1 | 1 2 2 Utility 3 | . 2 5 Weapon 1 | 1 1 1 Tool/Special . | . . . Unused Backups 13 | . 3 10 Power 3 | . 1 2 Propulsion 2 | . . 2 Utility 6 | . . 6 Weapon 2 | . 2 . Tool/Special . | . . . Average Slot Usage (%) 99 | . 100 98 Engine 13 | . 14 13 Treads 13 | . 14 13 Wheel 13 | . 14 13 Device 13 | . 14 13 Storage 14 | . 14 14 Energy Gun 4 | . 7 . Ballistic Gun 23 | . 20 27 Peak Build Rating 10 | 7 10 10 Average Rating 8 | 5 8 9 On Entrance 5 | . 7 10 Avg Prop Armor Cover (%) 12 | 10 12 12 Naked Turns . | . . . Heaviest Build 32 | 14 32 32 Greatest Support 20 | 20 16 16 Greatest Overweight (x) 8 | . 1 8 Average Overweight (x) . | . . 1 Largest Inventory Capacity 15 | 8 15 15 Average Capacity 11 | 7 9 15 Most Carried 15 | 7 10 15 Average Carried 9 | 4 8 12 Final Capacity 15 | 8 15 15 Final Carried 13 | 7 10 13 Class Distribution -------------------- 100% | Mutant Dominant Class ---------------- Mutant | -10/Materials Mutant | -10/Mines Resources | -11 -10 -10 ----------- Run | Yrd Mat Min Matter Collected 363 | 279 36 48 Remotely . | . . . Salvage Created 262 | 125 20 117 Parts 19 | 12 2 5 Haulers Intercepted . | . . . Recyclers Shooed . | . . . Parts Field Recycled . | . . . Retrieved Matter . | . . . Parts Self-Destructed . | . . . Prevented . | . . . Parts Restored . | . . . Kills | -11 -10 -10 ------- Run | Yrd Mat Min Combat Hostiles Destroyed 8 | . 1 7 Guns 4 | . 1 3 AOE 4 | . . 4 Classes Destroyed 5 | 2 1 2 Worker 2 | 1 . 1 Tunneler 4 | 4 . . Swarmer 1 | . 1 . Grunt 2 | . . 2 Assembled 5 | . . 5 Best Kill Streak 5 | 4 1 5 Combat Bots Only 5 | . 1 5 Max Kills in Single Turn 3 | 1 1 3 Gunslinging . | . . . Exploded 2 | . . 2 Melee . | . . . Uniques/NPCs Destroyed . | . . . Combat | -11 -10 -10 -------- Run | Yrd Mat Min Hostile Shots Fired 55 | . . 55 Missed 11 | . . 11 Hits 44 | . . 44 Projectile 44 | . . 44 AOE 21 | . . 21 Critical Strikes 1 | . . 1 Damage Taken 1105 | . . 1105 Core 267 | . . 267 Absorbed by Shields . | . . . Core Remaining (%) 100 | 100 . . Volleys Fired 23 | 9 3 11 Largest 2 | 2 2 2 Hottest 63 | 60 63 53 Shots Fired 44 | 18 6 20 Gun 40 | 18 6 16 Cannon . | . . . Launcher 4 | . . 4 Special . | . . . Kinetic 28 | 9 3 16 Thermal . | . . . Explosive 4 | . . 4 Electromagnetic 12 | 9 3 . Robot Hit Streak 5 | 5 2 5 Robot Miss Streak 3 | 3 1 2 Penetration Max . | . . . Secondary Targets . | . . . Shots Hit Robots 28 | 10 3 15 Core Hits 26 | 6 2 18 Critical Kills . | . . . Critical Parts Destroyed . | . . . Critical Strikes . | . . . Melee Attacks . | . . . Impact . | . . . Slashing . | . . . Piercing . | . . . Sneak Attacks . | . . . Combat Hostiles . | . . . Follow-up Attacks . | . . . Damage Inflicted 620 | 136 28 456 Guns 358 | 136 28 194 Cannons . | . . . Explosions 262 | . . 262 Melee . | . . . Ramming . | . . . Kinetic 242 | 30 18 194 Thermal . | . . . Explosive 262 | . . 262 Electromagnetic 116 | 106 10 . Impact . | . . . Slashing . | . . . Piercing . | . . . Highest Corruption . | . . . Average Corruption . | . . . Corruption Purged . | . . . Corruption Blocked . | . . . Overload Shots . | . . . Overflow Damage 7 | . . 7 Projectiles . | . . . Explosions 7 | . . 7 Melee . | . . . Knockbacks . | . . . Impact . | . . . Kinetic . | . . . Secondary . | . . . Self-Inflicted Damage 13 | . . 13 Shots 1 | . . 1 Rammed . | . . . Targets Rammed . | . . . Kicked . | . . . Crushed . | . . . Highest Temperature 43 | 20 20 43 Average Temperature 16 | 15 9 21 Received Heat Transfer 119 | . . 119 Siege Activations . | . . . Martial Activations . | . . . Shielding Activations . | . . . Robots Disrupted . | . . . Combat Hostiles . | . . . Robots Corrupted . | . . . Combat Hostiles . | . . . Parts Fried . | . . . Impact Corruptions . | . . . Robots Melted . | . . . Combat Hostiles . | . . . Parts Melted . | . . . Heat Transferred . | . . . Parts Sabotaged . | . . . Parts Stolen . | . . . Parts Stripped . | . . . Power Chain Reactions . | . . . Alert | -11 -10 -10 ------- Run | Yrd Mat Min Maximum Alert Level . | . . . Low Security (%) 100 | 100 100 100 Level 1 . | . . . Level 2 . | . . . Level 3 . | . . . Level 4 . | . . . Level 5 . | . . . High Security . | . . . Max Security . | . . . Peak Influence 55 | 5 20 55 Initial 1 | . . 1 Average 3 | 2 1 6 Influence Increases 152 | 25 40 87 Destroy 0b10 Robot/C 60 | . 20 40 Destroy 0b10 Robot/NC 30 | 25 . 5 Destroy Leader 10 | . . 10 Successful Hack 26 | . 20 6 Destroy Structure 11 | . . 11 Lose Combat Pursuer 15 | . . 15 Influence Decreases 152 | 25 34 93 Entered New Map 5 | . . 5 Time Decay 129 | 25 34 70 Lost Part 18 | . . 18 Squads Dispatched 4 | . 4 . Investigation 2 | . 2 . Extermination . | . . . Reinforcement 2 | . 2 . Assault . | . . . Garrison . | . . . Intercept . | . . . Searches Triggered . | . . . Construction Impeded . | . . . Haulers Reinforced . | . . . Active Scanning Responses . | . . . Cargo Convoy Interrupts . | . . . Stealth | -11 -10 -10 --------- Run | Yrd Mat Min Distress Signals 3 | . 3 . Communications Jammed . | . . . Distress Signals . | . . . Times Spotted 22 | . 5 17 Peak Tracking Total 7 | . 2 7 Tactical Retreats 2 | . . 2 Traps | -11 -10 -10 ------- Run | Yrd Mat Min Traps Triggered . | . . . Indirectly . | . . . Trap Hack Attempts . | . . . Triggered . | . . . Disarmed . | . . . Reprogrammed . | . . . Reused . | . . . Traps Extracted . | . . . Installed . | . . . Triggered . | . . . Most Traps Carried 3 | . . 3 Machines | -11 -10 -10 ---------- Run | Yrd Mat Min Machines Disabled . | . . . Max in Single Turn . | . . . Machines Repaired . | . . . Machines Dismantled . | . . . Machines Sabotaged . | . . . Overloaded Fab Kills . | . . . Hacking | -11 -10 -10 --------- Run | Yrd Mat Min Machines Accessed 5 | . 4 1 Terminals 5 | . 4 1 Fabricators . | . . . Repair Stations . | . . . Recycling Units . | . . . Scanalyzers . | . . . Garrison Access . | . . . Total Hacks 10 | . 8 2 Successful 4 | . 3 1 Failed 6 | . 5 1 Catastrophic 1 | . 1 . Database Lockouts . | . . . Manual 8 | . 6 2 Terminals 10 | . 8 2 Fabricators . | . . . Repair Stations . | . . . Recycling Units . | . . . Scanalyzers . | . . . Garrison Access . | . . . Terminal Hacks 4 | . 3 1 Terminal Index 2 | . 1 1 Alert Level 1 | . 1 . Hauler Manifests 1 | . 1 . Fabricator Hacks . | . . . Repair Station Hacks . | . . . Recycling Unit Hacks . | . . . Scanalyzer . | . . . Garrison Access Hacks . | . . . Unauthorized Hacks . | . . . Terminals . | . . . Fabricators . | . . . Repair Stations . | . . . Recycling Units . | . . . Scanalyzers . | . . . Garrison Access . | . . . Data Cores Recovered . | . . . Used . | . . . Hacking Detections 3 | . 2 1 Full Trace Events 2 | . 2 . Feedback Events . | . . . Feedback Blocked . | . . . Robot Schematics Acquired . | . . . Robots Built . | . . . Authchips . | . . . Time . | . . . Total Robot Build Rating . | . . . Part Schematics Acquired . | . . . Parts Built . | . . . Authchips . | . . . Time . | . . . Total Part Build Rating . | . . . Part Studies Acquired . | . . . Parts Repaired . | . . . Time . | . . . Parts Recycled . | . . . Recycled Matter . | . . . Retrieved Matter . | . . . Retrieved Components . | . . . Parts Scanalyzed . | . . . Part Schematics Acquired . | . . . Parts Damaged . | . . . Bothacking | -11 -10 -10 ------------ Run | Yrd Mat Min Used RIF Installer . | . . . Robots Hacked . | . . . Non-combat . | . . . Combat . | . . . Robot Hacks Applied . | . . . Relay Couplers Released . | . . . Fabnet Peak Effective % . | . . . Robots Rewired . | . . . Allies Hacked . | . . . Hacks Repelled . | . . . Allies | -11 -10 -10 -------- Run | Yrd Mat Min Total Allies . | . . . Largest Group . | . . . Highest-Rated Group . | . . . Highest-Rated Ally . | . . . Total Orders . | . . . Ally Attacks . | . . . Total Damage . | . . . Kills . | . . . Allies Corrupted . | . . . Allies Melted . | . . . Intel | -11 -10 -10 ------- Run | Yrd Mat Min Active Infowar (turns) 1200 | 66 695 439 Seismic 1200 | 66 695 439 Robot Analysis Total . | . . . Derelict Logs Recovered 1 | . . 1 Drone Launches . | . . . Drone Recoveries . | . . . Exploration | -11 -10 -10 ------------- Run | Yrd Mat Min Turns Passed 1315 | 162 695 458 Spaces Moved 1011 | 107 582 322 Core 3 | 1 . 2 Treads 22 | 22 . . Legs . | . . . Wheels 986 | 84 582 320 Hover . | . . . Flight . | . . . Fastest Speed 50 | 50 100 115 Average Speed 109 | 111 105 116 Slowest Speed 450 | 160 115 450 Overloaded Moves . | . . . Propulsion Burnouts . | . . . Robots Hopped . | . . . Potential Cave-ins . | . . . Cave-ins Triggered 1 | . . 1 Exploration Rate (%) 52 | 6 77 73 Regions Visited 2 Branch Regions 1 Pre-discovered Areas 1 | . . 1 Known Exits Taken . | . . . Unknown Exits Taken 2 | 1 1 . Scrap Searched 1 | . . 1 Spaces Dug . | . . . Terrain Destroyed 18 | . . 18 Melee . | . . . Projectile . | . . . AOE 18 | . . 18 Terrain Rammed . | . . . Walls Destroyed . | . . . Machines Disabled . | . . . Actions | -11 -10 -10 --------- Run | Yrd Mat Min Total 1172 | 130 658 384 Wait 101 | . 58 43 Move 1009 | 106 581 322 Hop . | . . . Pick Up 20 | 8 7 5 Fast Attach 7 | 6 1 . Attach 3 | 1 . 2 Detach . | . . . Swap 3 | . 2 1 Drop 6 | . 6 . Fire 23 | 9 3 11 Melee . | . . . Ram . | . . . Kick . | . . . Crush . | . . . Escape Stasis . | . . . Rewire . | . . . Trap . | . . . Miscellaneous . | . . . Route ------- -11/Scrapyard -10/Materials (discovered 5 exits: [*Mat x2] / *Min x2 / [*Sub]) -10/Mines History --------- Turn | Location | Event 39 | -11/Scrapyard | Discovered new exit (range 15) 163 | -11/Scrapyard | Entered Materials 241 | -10/Materials | Discovered new exit (range 16) 299 | -10/Materials | Discovered new exit (range 7) 309 | -10/Materials | Build established: Mutant 423 | -10/Materials | Discovered new exit (range 5) 572 | -10/Materials | Discovered new exit (range 4) 851 | -10/Materials | Discovered new exit (range 6) 858 | -10/Materials | Entered Mines 1041 | -10/Mines | Learned location of Zion (-7) 1054 | -10/Mines | Found a hidden stash of uninstalled traps 1228 | -10/Mines | YI-UF0 nonchalantly dropped a Grenade Launcher on the ground 1243 | -10/Mines | Assembled infested the area 1307 | -10/Mines | Core integrity fell below 50% 1316 | -10/Mines | Crushed by falling debris 1316 | -10/Mines | Core integrity fell below 20% 1316 | -10/Mines | Destroyed by YI-UF0 with YI-UF0's Doublenader Last Messages --------------- 01297_ as-12441 destroyed. 01297_ as-83703 destroyed. 01297_ Seismic Detector destroyed. 01300_ Destroyed Asb. Hover Unit. 01300_ as-58080 destroyed. 01300_ as-60739 destroyed. 01300_ as-52696 destroyed. 01300_ Ion Engine destroyed. 01302_ YI-UF0 mumbles something. 01302_ Shotgun destroyed. 01304_ The unstable cave ceiling collapses. 01304_ Lgt. Treads destroyed. 01306_ Grenade Launcher destroyed. 01310_ Shotgun destroyed. 01311_ The unstable cave ceiling collapses. 01316_ Crushed by falling debris. [Achievement: Unlikely Earthworm] 01316_ Shotgun destroyed. 01316_ System corrupted by crushing effect (+1). 01316_ The unstable cave ceiling collapses. Map ----- +----------------------------------------------------+ | ????????????????????????????## ## | | ?????????????????????????????### # | | ???????????????????????????????## | | ????????????????????????????????# | | ???????????????????????????????## | | ???????????????????????????????# | | ???????????????????????????????# | | ???????????????????????????????## | | ????????????????????????????????# | | ????????????????????????????????# | | ???????????????????????????????## | | ?????????????????????????????### | | ??????????????? ########## | | ??????????????? ## | | ??????????????? ## ####? | | ??????????????? ######### ######???? | | ???????????????????????????# ##????????? | | ???????????????????????????# #?????????? | | ??????????????#??????????# ##????????? | | ??????????????# ####??#### #####????? | | ????????????????"% #?# # ##???? | | ????????????###### ## ####? | | ????????##### # ## | | ????????# # | | ??????### ## # *= # | | ??????# #@ ### | | ???????# a # # #?# # | | ???????## #?# ##### | | ????????## a g #??## ##???? | | ?????????# #??#####????? | | ?????????# a #???????????? | | ?????????### #??????????? | | ???????????## #a # #??????????? | | ????????????## # #?????????? | | ?????????????#### # a #?????????# | | ?????????????????###### a ###?????????# | | ??????????????????????? ??????????# | | ????????????????????????## #?????????# | | ?????????????????????????? ###??????????# | | ??????????????????????????? #????????????? | | ???????????????????????????##????????????? | | ?????????????????????????????????????????? | | ?????????????????????????????????????????? | | ?????????????????????????????????????????? | | ?????????????????????????????????????????? | | ?????????????????????????????????????????? | | ?????????????????????????????????????????? | | ?????????????????????????????????????????? | | | | | +----------------------------------------------------+ Best States ------------- Heat Dissipation 25 Energy Generation 10 Energy Capacity 250 Matter Stores 300 Matter Capacity 300 Sight Range 16 Terrain Scan Density 10 Evasion (%) 40 Recoil Reduction 1 Item Schematics ----------------- None Robot Schematics ------------------ None Fabricated ------------ Nothing Repaired ---------- Nothing Studied --------- None Alien Tech Used ----------------- None Achievements -------------- Unlikely Earthworm Challenges ------------ None Game ------ Seed SupersonicMiningDrive Manual? 0 Play Time 00:15:34 Cumulative 4.8 hours Start 2025.12.26 @ 13:10:50 End 2025.12.26 @ 13:26:11 Sessions 1 Manual Loads 0 Difficulty Rogue Special Mode None Game No. 7 Rogue 7 Adventurer 0 Explorer 0 Win Type - Total 0 Types 0/0/0/0/0/0/0/0/0/0 Lore% 5 Gallery% 7 Achievement% 9 Wizard Run 0 Options --------- Layout 2 ASCII 0 Keyboard 0 Movement Numpad Keybinds 0 Fullscreen 2 Font 24/Smallcaps Map View 50x44 Zoom Use 0% Tactical HUD 1 Map Filters NONE Filters NONE Steam 1 RUN: bb273ca9-9539-4929-9859-264211107c87